[Event "FIDE World School-ch O-11 2025"]
[Site "Vrnjacka Banja"]
[Date "2025.03.27"]
[Round "8.1"]
[White "Yildiz, Ali Aras"]
[Black "Zhauynbay, Alimzhan"]
[Result "1/2-1/2"]
[Annotator "NA RC"]
[ECO "B22"]
[WhiteElo "1932"]
[BlackElo "1927"]
[PlyCount "150"]
[EventDate "2025.03.19"]
[EventType "swiss"]
[EventCountry "SRB"]
[SourceTitle "playchess.com"]
[Source "ChessBase"]
[SourceQuality "1"]
[TimeControl "5400+30"]

1. e4 {[%emt 0:00:10]} c5 {[%emt 0:00:03]} 2. Nf3 {[%emt 0:00:35]} Nc6 {[%emt 0:00:05]} 3. c3 {[%emt 0:00:33]} Nf6 {[%emt 0:00:14]} 4. e5 {[%emt 0:00:29]} Nd5 {[%emt 0:00:13]} 5. Bc4 {[%emt 0:00:48]} Nb6 {[%emt 0:00:49]} 6. Bb3 {[%emt 0:01:06]} d5 {[%emt 0:02:04]} 7. exd6 {[%emt 0:00:48]} c4 {[%emt 0:00:17]} 8. Bc2 {[%emt 0:01:12]} Qxd6 {[%emt 0:00:09]} 9. O-O {[%emt 0:00:50]} Bg4 {[%emt 0:00:39]} 10. h3 {[%emt 0:00:49]} Bh5 {[%emt 0:01:48]} 11. Re1 {[%emt 0:02:06]} Qf6 {[%emt 0:09:17]} 12. Be4 {[%emt 0:05:09]} e6 {[%emt 0:09:28]} 13. d4 {[%emt 0:04:20]} h6 {[%emt 0:13:44]} 14. g4 {[%emt 0:15:48]} Bg6 {[%emt 0:01:12]} 15. g5 {[%emt 0:02:05]} Qe7 {[%emt 0:03:11]} 16. Bxg6 {[%emt 0:01:37]} fxg6 {[%emt 0:00:02]} 17. Nh4 {[%emt 0:09:45]} Qf7 {[%emt 0:06:09]} 18. Qg4 {[%emt 0:08:18]} Be7 {[%emt 0:09:59]} 19. Nd2 {[%emt 0:18:06]} hxg5 {[%emt 0:06:08]} 20. Nhf3 {[%emt 0:01:28]} Qf5 {[%emt 0:03:01]} 21. Kg2 {[%emt 0:03:09]} Kd7 {[%emt 0:06:41]} 22. Ne4 {[%emt 0:03:34]} Rhf8 {[%emt 0:03:53]} 23. Bxg5 {[%emt 0:02:32]} Nd5 {[%emt 0:02:56]} 24. Bxe7 {[%emt 0:08:01]} Nf4+ {[%emt 0:02:09]} 25. Kg3 {[%emt 0:02:38]} Qxg4+ {[%emt 0:02:57]} 26. hxg4 {[%emt 0:00:51]} Kxe7 {[%emt 0:00:36]} 27. Neg5 {[%emt 0:01:13]} Kd7 {[%emt 0:07:20]} 28. Nh7 {[%emt 0:01:19]} Rh8 {[%emt 0:01:45]} 29. Kxf4 {[%emt 0:00:33]} Rxh7 {[%emt 0:00:07]} 30. Ng5 {[%emt 0:00:34]} Rhh8 {[%emt 0:01:36]} 31. Rxe6 {[%emt 0:00:51]} Rhf8+ {[%emt 0:01:26]} 32. Kg3 {[%emt 0:00:30]} Rf6 {[%emt 0:00:16]} 33. Rxf6 {[%emt 0:01:01]} gxf6 {[%emt 0:00:02]} 34. Ne4 {[%emt 0:00:15]} f5 {[%emt 0:01:28]} 35. gxf5 {[%emt 0:00:44]} gxf5 {[%emt 0:00:05]} 36. Nc5+ {[%emt 0:01:08]} Kc7 {[%emt 0:00:12]} 37. Rh1 {[%emt 0:04:05]} Rg8+ {[%emt 0:03:22]} 38. Kf4 {[%emt 0:00:00]} Ne7 {[%emt 0:00:58]} 39. Rh7 {[%emt 0:00:00]} Re8 {[%emt 0:00:01]} 40. Ne6+ {[%emt 0:00:09]} Kd6 {[%emt 0:00:37]} 41. Ng7 {[%emt 0:00:12]} Rf8 {[%emt 0:00:38]} 42. Rh6+ {[%emt 0:00:18]} Kd7 {[%emt 0:00:56]} 43. Ke5 {[%emt 0:00:36]} Rg8 {[%emt 0:01:04]} 44. Nxf5 {[%emt 0:01:09]} Nxf5 {[%emt 0:00:57]} 45. Kxf5 {[%emt 0:00:13]} Rg2 {[%emt 0:00:05]} 46. Rh7+ {[%emt 0:00:53]} Kc6 {[%emt 0:00:22]} 47. f4 {[%emt 0:00:34]} Rxb2 {[%emt 0:00:06]} 48. a4 {[%emt 0:00:50]} Rc2 {[%emt 0:00:33]} 49. Rh3 {[%emt 0:00:20]} b5 {[%emt 0:01:09]} 50. axb5+ {[%emt 0:00:39]} Kxb5 {[%emt 0:00:05]} 51. Ke6 {[%emt 0:00:19]} a5 {[%emt 0:00:12]} 52. f5 {[%emt 0:00:36]} Re2+ {[%emt 0:00:53]} 53. Kf7 {[%emt 0:00:36]} a4 {[%emt 0:00:30]} 54. Rh8 {[%emt 0:00:26]} a3 {[%emt 0:00:47]} 55. Ra8 {[%emt 0:00:17]} a2 {[%emt 0:00:37]} 56. f6 {[%emt 0:00:20]} Kc6 {[%emt 0:00:11]} 57. Kf8 {[%emt 0:00:34]} Kd7 {[%emt 0:00:58]} 58. f7 {[%emt 0:00:41]} Rg2 {[%emt 0:01:09]} 59. Ra7+ {[%emt 0:00:34]} Kd8 {[%emt 0:01:03]} 60. Ra8+ {[%emt 0:00:37]} Kd7 {[%emt 0:00:01]} 61. d5 {[%emt 0:00:16]} Kd6 {[%emt 0:00:59]} 62. Ke8 {[%emt 0:00:42]} Re2+ {[%emt 0:00:07]} 63. Kd8 {[%emt 0:00:13]} Rf2 {[%emt 0:00:06]} 64. Ra6+ {[%emt 0:00:42]} Kxd5 {[%emt 0:00:10]} 65. Ke7 {[%emt 0:00:18]} Re2+ {[%emt 0:00:38]} 66. Kd7 {[%emt 0:00:38]} Rf2 {[%emt 0:00:13]} 67. Ra5+ {[%emt 0:00:42]} Ke4 {[%emt 0:00:05]} 68. Ke7 {[%emt 0:00:18]} Kd3 {[%emt 0:01:08]} 69. Rxa2 {[%emt 0:00:26]} Rxf7+ {[%emt 0:00:24]} 70. Kxf7 {[%emt 0:00:03]} Kxc3 {[%emt 0:00:05]} 71. Ke6 {[%emt 0:00:20]} Kb3 {[%emt 0:00:08]} 72. Ra8 {[%emt 0:00:13]} c3 {[%emt 0:00:05]} 73. Rb8+ {[%emt 0:00:35]} Ka2 {[%emt 0:00:19]} 74. Rc8 {[%emt 0:00:41]} Kb2 {[%emt 0:00:07]} 75. Kd5 {[%emt 0:00:25]} c2 {[%emt 0:00:07]} 1/2-1/2

[Event "FIDE World School-ch O-11 2025"]
[Site "Vrnjacka Banja"]
[Date "2025.03.27"]
[Round "8.2"]
[White "Zabelin, Platon"]
[Black "Tulegen, Ramazan"]
[Result "1/2-1/2"]
[Annotator "NA RC"]
[ECO "E17"]
[WhiteElo "1831"]
[BlackElo "1973"]
[PlyCount "51"]
[EventDate "2025.03.19"]
[EventType "swiss"]
[EventCountry "SRB"]
[SourceTitle "playchess.com"]
[Source "ChessBase"]
[SourceQuality "1"]
[TimeControl "5400+30"]

1. d4 {[%emt 0:00:05]} e6 {[%emt 0:00:14]} 2. Nf3 {[%emt 0:00:12]} Nf6 {[%emt 0:00:25]} 3. g3 {[%emt 0:01:18]} Be7 {[%emt 0:00:29]} 4. Bg2 {[%emt 0:00:30]} d5 {[%emt 0:00:06]} 5. O-O {[%emt 0:00:28]} O-O {[%emt 0:00:35]} 6. Nbd2 {[%emt 0:03:03]} b6 {[%emt 0:13:24]} 7. c4 {[%emt 0:02:28]} Bb7 {[%emt 0:06:13]} 8. b3 {[%emt 0:04:38]} c5 {[%emt 0:05:28]} 9. Bb2 {[%emt 0:01:28]} Nbd7 {[%emt 0:10:21]} 10. e3 {[%emt 0:08:16]} Ne4 {[%emt 0:08:34]} 11. Nxe4 {[%emt 0:05:26]} dxe4 {[%emt 0:00:32]} 12. Ne5 {[%emt 0:15:14]} Nxe5 {[%emt 0:09:39]} 13. dxe5 {[%emt 0:00:05]} Qxd1 {[%emt 0:05:39]} 14. Rfxd1 {[%emt 0:01:10]} Rfd8 {[%emt 0:02:03]} 15. Kf1 {[%emt 0:00:51]} a6 {[%emt 0:03:00]} 16. a4 {[%emt 0:03:15]} Bc6 {[%emt 0:03:21]} 17. Ke1 {[%emt 0:01:12]} Rdb8 {[%emt 0:03:46]} 18. Bf1 {[%emt 0:02:49]} Rb7 {[%emt 0:04:41]} 19. Bc3 {[%emt 0:14:47]} Rab8 {[%emt 0:05:45]} 20. Rdb1 {[%emt 0:10:38]} a5 {[%emt 0:03:30]} 21. Rd1 {[%emt 0:01:32]} Kf8 {[%emt 0:01:59]} 22. Bg2 {[%emt 0:04:11]} Ke8 {[%emt 0:00:50]} 23. Ke2 {[%emt 0:02:03]} Rd7 {[%emt 0:01:49]} 24. Rxd7 {[%emt 0:03:42]} Kxd7 {[%emt 0:00:07]} 25. Rd1+ {[%emt 0:00:45]} Ke8 {[%emt 0:01:27]} 26. Rd2 {[%emt 0:02:06]} 1/2-1/2

[Event "FIDE World School-ch O-11 2025"]
[Site "Vrnjacka Banja"]
[Date "2025.03.27"]
[Round "8.3"]
[White "Uzdemir, Ali Poyraz"]
[Black "Larion, Iustin"]
[Result "1-0"]
[Annotator "TA"]
[ECO "B15"]
[WhiteElo "2184"]
[BlackElo "1919"]
[PlyCount "119"]
[EventDate "2025.03.19"]
[EventType "swiss"]
[EventCountry "SRB"]
[SourceTitle "playchess.com"]
[Source "ChessBase"]
[SourceQuality "1"]
[TimeControl "5400+30"]

{[%evp 14,118,45,18,42,49,52,30,32,30,31,31,31,31,29,31,34,33,29,5,1,-2,-3,-16,9,-29,0,0,19,17,20,-32,-8,-7,-10,10,87,103,106,-28,2,16,19,10,38,29,93,92,106,108,121,88,92,39,511,497,528,525,525,514,524,519,534,538,541,527,572,572,570,539,615,575,693,683,667,652,29992,29987,29987,29988,29988,29989,29976,5189,29989,2666,29974,29974,29969,29969,29969,5659,29991,5193,1836,1641,1216,1097,6536,5314,29994,29995,29996,29997,29998,29999,29999]} 1. e4 {[%emt 0:00:02]} c6 {[%emt 0:00:10]} 2. d4 {[%emt 0:00:01]} d5 {[%emt 0:00:10]} 3. Nc3 {[%emt 0:00:05]} dxe4 {[%emt 0:00:38]} 4. Nxe4 {[%emt 0:00:03]} Nf6 {[%emt 0:00:11]} 5. Nxf6+ {[%emt 0:00:06]} exf6 {[%emt 0:00:03]} 6. c3 {[%emt 0:00:03]} Bd6 {[%emt 0:00:07]} 7. Bd3 {[%emt 0:00:02]} O-O {[%emt 0:00:09]} 8. Qc2 {[%emt 0:00:02]} c5 {[%emt 0:01:43] B15: Caro-Kann: 3 Nc3: 3...g6 and 3...dxe4 4 Nxe4 Nf6 5 Nxf6+ exf6.} 9. Ne2 {[%emt 0:11:35] Active counter play!} h6 {[%emt 0:00:17]} 10. Be3 {[%emt 0:01:57]} Qc7 {[%emt 0:00:10] White has an edge.} 11. dxc5 {[%emt 0:09:36]} Bxc5 {[%emt 0:00:49]} 12. Bf4 {[%emt 0:00:06]} Bd6 $146 {[%emt 0:11:51]} ({Predecessor:} 12... Qe7 13. O-O Nc6 14. Ng3 Re8 15. h3 Bd6 16. Bxd6 Qxd6 17. Rad1 Qc7 18. Bh7+ Kh8 {½-½ Grieve,H (2458)-Fiorito,J (2411) Brena Baja Magica 2025 (1)}) 13. Bxd6 {[%emt 0:01:23]} Qxd6 {[%emt 0:00:10]} 14. O-O {[%emt 0:00:16]} Nc6 {[%emt 0:01:24]} 15. Rad1 {[%emt 0:01:49]} Qc7 {[%emt 0:02:01]} 16. Qa4 {[%emt 0:05:27]} Re8 {[%emt 0:12:10]} 17. Nf4 {[%emt 0:13:16]} Bg4 {[%emt 0:08:24]} 18. Rde1 {[%emt 0:09:53]} Bd7 {[%emt 0:10:43]} 19. Nh5 {[%emt 0:11:26]} Ne5 {[%emt 0:12:33]} (19... Rad8 {simplifies} 20. Rxe8+ Rxe8 21. Ng3 Be6) 20. Qf4 {[%emt 0:00:47] aiming for Re3.} Qd6 {[%emt 0:02:24] [#]} 21. Qg3 {[%emt 0:08:29][%csl Gh5][%cal Rg3g7]} Bg4 $1 {[%emt 0:05:17]} 22. Bb5 {[%emt 0:09:20]} (22. Rd1 $11 Qe6 (22... Bxh5 $2 23. Bh7+ Kxh7 24. Rxd6 $18) 23. Nxg7 Kxg7 24. h3) 22... Re7 $15 {[%emt 0:07:06]} (22... Bxh5 $6 23. Bxe8 Rxe8 24. f4 $14) 23. Nxg7 {[%emt 0:05:57]} Kxg7 {[%emt 0:01:01]} 24. h3 $1 {[%emt 0:00:27] Wards off f5} a6 {[%emt 0:14:31]} (24... h5 $11) 25. Be2 $36 {[%emt 0:02:35][%mdl 2048] White is really pushing.} Rae8 {[%emt 0:00:12][%cal Oe5f3]} 26. Kh1 {[%emt 0:02:44] [#]} (26. hxg4 $2 Qd2 27. Qe3 Nc4 28. Bxc4 (28. Qxd2 $2 Nxd2 29. f3 Rxe2 $19) 28... Rxe3 29. fxe3 Qxb2 $19 (29... Rxe3 $2 30. Rd1 $19)) (26. Rd1 $16 Nf3+ 27. Bxf3 (27. gxf3 $2 Qxg3+ 28. fxg3 Bxh3 $19) 27... Qxg3 28. fxg3 Bxf3 29. gxf3 (29. Rxf3 Re2 $16)) 26... h5 $1 {[%emt 0:01:04][%cal Oh5h4]} 27. Rd1 {[%emt 0:01:38]} Qe6 {[%emt 0:00:51][%cal Oe5g6]} 28. hxg4 {[%emt 0:01:54]} hxg4 {[%emt 0:00:39][%cal Of6f5] aiming for ...f5!.} 29. f4 $1 {[%emt 0:00:55][%cal Bf2f4,Bf4f5][%mdl 32]} Qb6 {[%emt 0:02:07]} 30. Bxg4 {[%emt 0:01:01]} (30. fxe5 $2 Rh8+ $19) 30... Ng6 {[%emt 0:01:47] [#]} 31. f5 $1 {[%emt 0:01:27]} Re3 {[%emt 0:00:30]} 32. Qf2 {[%emt 0:00:18]} Ne5 {[%emt 0:02:32]} 33. Bh3 {[%emt 0:00:31]} ({Better is} 33. Be2 $16) 33... Nd3 $2 {[%emt 0:00:38][%mdl 8192] This move loses the game for Black.} (33... Nc6 $14) 34. Rxd3 $18 {[%emt 0:00:10]} Qb5 {[%emt 0:01:24]} 35. Rxe3 {[%emt 0:00:33]} Rxe3 {[%emt 0:00:03]} 36. Qxe3 {[%emt 0:01:02]} Qxf1+ {[%emt 0:00:03]} 37. Kh2 {[%emt 0:00:06]} Qb1 {[%emt 0:00:08]} 38. Qg3+ {[%emt 0:00:32]} Kh7 {[%emt 0:00:09]} 39. Qc7 {[%emt 0:00:53][%csl LRb7,LRf7]} Kg7 {[%emt 0:00:05]} 40. Qxb7 {[%emt 0:00:19]} Qxa2 {[%emt 0:00:04]} 41. b4 {[%emt 0:00:53]} Qd2 {[%emt 0:00:01]} 42. Qf3 {[%emt 0:00:07]} Qb2 {[%emt 0:00:04]} 43. Bg4 {[%emt 0:00:21]} Qd2 {[%emt 0:00:01]} 44. Bh5 {[%emt 0:00:10]} Qb2 {[%emt 0:00:08]} 45. Qd5 {[%emt 0:00:18]} Kh6 {[%emt 0:00:21]} 46. Qxf7 {[%emt 0:00:11][%csl Gf5,Gh5][%cal Rf7g6]} Kg5 {[%emt 0:00:04]} 47. Qg6+ {[%emt 0:00:09]} Kf4 {[%emt 0:00:06]} 48. Qxf6 {[%emt 0:00:40]} (48. Qg4+ $142 Ke5 49. Qg3+ Kd5 50. Qe3 Kd6 51. Be8 Kc7 52. Qe7+ Kc8 53. Qd7+ (53. Qxf6 Qd2 $18) 53... Kb8 54. Qd6+ Kc8 55. Bd7+ (55. Qxa6+ Kd8 $18) 55... Kb7 56. Qc6+ (56. Qxf6 Kc7 57. Qc6+ Kd8 58. Qd6 Qd2 59. Qxd2 Ke7 60. Be6 Kf6 61. Qd4+ Kg5 62. Kg3 Kh6 63. Qh8+ Kg5 64. Qh4#) 56... Ka7 57. Qc7+ Ka8 58. Bc6#) 48... Qa1 {[%emt 0:00:15]} 49. Bf3 {[%emt 0:00:30]} (49. g3+ $142 Ke4 50. Qd4+ Kxf5 51. Qd5+ Kf6 52. Qd6+ Kg7 53. Qg6+ Kh8 54. Qf6+ Kg8 55. Bf7+ Kf8 56. Bd5+ Ke8 57. Bc6#) 49... Qe1 {[%emt 0:00:14]} 50. Qh6+ {[%emt 0:00:50]} Kxf5 {[%emt 0:00:04]} 51. g4+ {[%emt 0:00:08]} Ke5 {[%emt 0:00:02]} 52. Qg5+ {[%emt 0:00:12]} ({Inferior is} 52. Qxa6 Qg3+ 53. Kh1 Qe1+ 54. Kg2 Qg3+ 55. Kh1 Qe1+ 56. Kg2 Qg3+ 57. Kf1 Qxf3+ 58. Ke1 Qxc3+ 59. Kf2 Qxb4 $11) (52. Qh8+ $142 Kf4 53. Qf8+ (53. Qf6+ Ke3 $18) 53... Ke3 54. Qe8+ Kf2 55. Qxe1+ Kxe1 56. c4 Kd2 57. c5) 52... Kd6 {[%emt 0:00:16]} 53. Qd5+ {[%emt 0:00:10]} (53. Qd8+ $142 Ke6 54. Qe8+ Kf6 55. Qxe1 Kf7 56. Qe5 Kg8 57. Qe6+ Kf8 58. Bd5 (58. Qxa6 Kf7 59. Qc6 Kg8 60. Qe8+ Kg7 61. g5 Kh7 62. Bd5 Kg7 63. Qg8#) 58... Kg7 59. g5 Kh8 60. Qh6#) 53... Kc7 {[%emt 0:00:05]} 54. Qc5+ {[%emt 0:00:40]} Kd8 {[%emt 0:00:13]} 55. Qd4+ {[%emt 0:00:02]} Kc8 {[%emt 0:00:11]} 56. g5 {[%emt 0:00:06] Intending Bg4+ and mate.} Qc1 {[%emt 0:00:12]} 57. Bg4+ {[%emt 0:00:07] White mates.} Kc7 {[%emt 0:00:12]} 58. Qc5+ {[%emt 0:00:05]} Kd8 {[%emt 0:00:14]} 59. Qd6+ {[%emt 0:00:03]} Ke8 {[%emt 0:00:18]} 60. Bh5# {[%emt 0:00:04] Weighted Error Value: White=0.16 (very precise) /Black=0.37  Loses game:     	---       	Black=1      Mistake:       	White=3     	Black=2      Inaccurate:     	White=1     	Black=3      OK:         	White=9     	Black=12     Best:        	White=5     	Black=1      Strong:       	White=3     	Black=1} 1-0

[Event "FIDE World School-ch O-11 2025"]
[Site "Vrnjacka Banja"]
[Date "2025.03.27"]
[Round "8.5"]
[White "Kalinichenko, German Yu"]
[Black "Kiringoda, Thehas Rithmitha"]
[Result "0-1"]
[Annotator "NA RC"]
[ECO "B13"]
[WhiteElo "1696"]
[BlackElo "1868"]
[PlyCount "70"]
[EventDate "2025.03.19"]
[EventType "swiss"]
[EventCountry "SRB"]
[SourceTitle "playchess.com"]
[Source "ChessBase"]
[SourceQuality "1"]
[TimeControl "5400+30"]

1. e4 {[%emt 0:00:25]} c6 {[%emt 0:00:03]} 2. d4 {[%emt 0:00:46]} d5 {[%emt 0:00:06]} 3. exd5 {[%emt 0:00:38]} cxd5 {[%emt 0:00:15]} 4. Bd3 {[%emt 0:00:16]} Nc6 {[%emt 0:00:21]} 5. c3 {[%emt 0:00:10]} Qc7 {[%emt 0:00:33]} 6. h3 {[%emt 0:00:31]} g6 {[%emt 0:00:24]} 7. Nf3 {[%emt 0:00:15]} Bf5 {[%emt 0:00:27]} 8. Be2 {[%emt 0:00:29]} Nf6 {[%emt 0:00:24]} 9. O-O {[%emt 0:00:54]} Bg7 {[%emt 0:00:15]} 10. Nbd2 {[%emt 0:00:59]} O-O {[%emt 0:00:31]} 11. Re1 {[%emt 0:00:53]} Rfe8 {[%emt 0:01:41]} 12. Bf1 {[%emt 0:03:44]} Rad8 {[%emt 0:02:10]} 13. b4 {[%emt 0:14:06]} Ne4 {[%emt 0:08:25]} 14. Nxe4 {[%emt 0:02:31]} dxe4 {[%emt 0:02:47]} 15. b5 {[%emt 0:07:09]} Nb8 {[%emt 0:22:14]} 16. Ng5 {[%emt 0:06:13]} Qxc3 {[%emt 0:00:36]} 17. Bd2 {[%emt 0:06:59]} Qxd4 {[%emt 0:00:14]} 18. Qb3 {[%emt 0:00:52]} Qf6 {[%emt 0:04:35]} 19. Bc4 {[%emt 0:03:17]} e6 {[%emt 0:01:37]} 20. Be3 {[%emt 0:04:35]} h6 {[%emt 0:01:01]} 21. Nxf7 {[%emt 0:04:08]} Qxf7 {[%emt 0:00:11]} 22. g4 {[%emt 0:00:19]} Bxa1 {[%emt 0:01:13]} 23. Rxa1 {[%emt 0:01:52]} Qg7 {[%emt 0:01:03]} 24. Re1 {[%emt 0:00:53]} Kh7 {[%emt 0:00:34]} 25. Bxa7 {[%emt 0:01:49]} Nd7 {[%emt 0:00:42]} 26. gxf5 {[%emt 0:06:59]} exf5 {[%emt 0:00:51]} 27. Kh1 {[%emt 0:01:16]} b6 {[%emt 0:01:16]} 28. Rg1 {[%emt 0:00:05]} Rf8 {[%emt 0:00:43]} 29. Qa3 {[%emt 0:01:26]} Ne5 {[%emt 0:00:40]} 30. Be6 {[%emt 0:00:46]} Ra8 {[%emt 0:00:09]} 31. Qd6 {[%emt 0:01:30]} Rxa7 {[%emt 0:00:38]} 32. h4 {[%emt 0:00:33]} Nf3 {[%emt 0:00:29]} 33. Rc1 {[%emt 0:00:35]} Qe7 {[%emt 0:00:17]} 34. Qxb6 {[%emt 0:00:30]} Qxh4+ {[%emt 0:00:35]} 35. Kg2 {[%emt 0:00:04]} Qg5+ {[%emt 0:00:17]} 0-1